[Event "*** Titled Tuesday Blitz AM"]
[Site "Chess.com"]
[Date "2020.01.07"]
[Round "6"]
[White "crescentmoon2411"]
[Black "fireheart92"]
[Result "1/2-1/2"]
[WhiteElo "3051"]
[BlackElo "2930"]
[TimeControl "180+2"]
[EndTime "10:19:14 PST"]
[Termination "Game drawn by agreement"]

1. e4 {[%clk 0:03:01.5]} 1... g6 {[%clk 0:03:00.8]} 2. d4 {[%clk 0:03:01.2]}
2... Bg7 {[%clk 0:03:02.3]} 3. Nc3 {[%clk 0:03:01.9]} 3... d6 {[%clk 0:03:03.5]}
4. Be3 {[%clk 0:03:02]} 4... a6 {[%clk 0:03:04.3]} 5. Nf3 {[%clk 0:02:52.8]}
5... Nd7 {[%clk 0:02:53.6]} 6. Qd2 {[%clk 0:02:51.5]} 6... b5 {[%clk 0:02:54.1]}
7. a4 {[%clk 0:02:47.4]} 7... b4 {[%clk 0:02:54.4]} 8. Nd5 {[%clk 0:02:43.7]}
8... Ngf6 {[%clk 0:02:51.2]} 9. Nxf6+ {[%clk 0:02:42.4]} 9... Nxf6 {[%clk
0:02:51.7]} 10. Bd3 {[%clk 0:02:41.6]} 10... Bb7 {[%clk 0:02:52.2]} 11. d5
{[%clk 0:02:31.9]} 11... O-O {[%clk 0:02:52.5]} 12. Qxb4 {[%clk 0:02:25.9]}
12... Qc8 {[%clk 0:02:49.1]} 13. O-O {[%clk 0:02:18.5]} 13... c6 {[%clk
0:02:50.1]} 14. c4 {[%clk 0:02:14]} 14... Ng4 {[%clk 0:02:47.5]} 15. dxc6 {[%clk
0:01:59.8]} 15... Bxc6 {[%clk 0:02:46]} 16. Bd4 {[%clk 0:02:00]} 16... e5 {[%clk
0:02:39.1]} 17. Bb6 {[%clk 0:01:56.1]} 17... f5 {[%clk 0:02:36.1]} 18. Rae1
{[%clk 0:01:28.8]} 18... Nf6 {[%clk 0:02:12.3]} 19. Nd2 {[%clk 0:01:28.7]} 19...
Bh6 {[%clk 0:02:10.2]} 20. Be3 {[%clk 0:01:01.6]} 20... Bxe3 {[%clk 0:01:31.5]}
21. Rxe3 {[%clk 0:01:03.5]} 21... Rb8 {[%clk 0:01:22.7]} 22. Qc3 {[%clk
0:01:00.3]} 22... f4 {[%clk 0:01:21]} 23. Re2 {[%clk 0:00:54.2]} 23... Bxa4
{[%clk 0:01:21.5]} 24. Ra1 {[%clk 0:00:53.9]} 24... Bc6 {[%clk 0:01:04.5]} 25.
c5 {[%clk 0:00:53.3]} 25... Bb5 {[%clk 0:01:05.6]} 26. Bxb5 {[%clk 0:00:50.3]}
26... axb5 {[%clk 0:01:05.5]} 27. Qb3+ {[%clk 0:00:48.4]} 27... Kh8 {[%clk
0:00:59.5]} 28. cxd6 {[%clk 0:00:49.6]} 28... Rb6 {[%clk 0:00:59.3]} 29. Nf3
{[%clk 0:00:49.8]} 29... Nd7 {[%clk 0:00:47.5]} 30. Rd1 {[%clk 0:00:46.7]} 30...
Qc4 {[%clk 0:00:47.4]} 31. Qxc4 {[%clk 0:00:44.2]} 31... bxc4 {[%clk 0:00:49.3]}
32. Rc2 {[%clk 0:00:43.7]} 32... Rb4 {[%clk 0:00:42.6]} 33. h3 {[%clk
0:00:41.1]} 33... Rfb8 {[%clk 0:00:42]} 34. Rd5 {[%clk 0:00:40.7]} 34... Rxb2
{[%clk 0:00:41.6]} 35. Rxc4 {[%clk 0:00:19.9]} 35... Rb1+ {[%clk 0:00:40.6]} 36.
Kh2 {[%clk 0:00:21.2]} 36... Rf1 {[%clk 0:00:41.4]} 37. Nd2 {[%clk 0:00:17.4]}
37... Rxf2 {[%clk 0:00:42.2]} 38. Rc7 {[%clk 0:00:18.1]} 38... Rb2 {[%clk
0:00:41.9]} 39. Rxd7 {[%clk 0:00:18.3]} 39... Rbxd2 {[%clk 0:00:43]} 40. Rxd2
{[%clk 0:00:08.5]} 40... Rxd2 {[%clk 0:00:44.9]} 41. Re7 {[%clk 0:00:09.6]}
41... Rxd6 {[%clk 0:00:45.2]} 42. Rxe5 {[%clk 0:00:10.6]} 42... Kg7 {[%clk
0:00:45.4]} 43. Re7+ {[%clk 0:00:10.5]} 43... Kf6 {[%clk 0:00:44.8]} 44. Rxh7
{[%clk 0:00:11.2]} 44... Re6 {[%clk 0:00:46.1]} 45. Kg1 {[%clk 0:00:11.6]} 45...
Rxe4 {[%clk 0:00:47.3]} 46. Kf2 {[%clk 0:00:11.7]} 46... Ra4 {[%clk 0:00:47.9]}
1/2-1/2

[Event "*** Titled Tuesday Blitz AM"]
[Site "Chess.com"]
[Date "2020.01.07"]
[Round "6"]
[White "peteseeger"]
[Black "Atanejhad"]
[Result "0-1"]
[WhiteElo "2171"]
[BlackElo "2409"]
[TimeControl "180+2"]
[EndTime "10:19:18 PST"]
[Termination "Atanejhad won by resignation"]

1. e4 {[%clk 0:03:01.9]} 1... e5 {[%clk 0:03:00.2]} 2. Nf3 {[%clk 0:03:02.2]}
2... Nc6 {[%clk 0:03:00.9]} 3. Bc4 {[%clk 0:03:02.8]} 3... Bc5 {[%clk 0:03:01]}
4. c3 {[%clk 0:03:03.4]} 4... Qe7 {[%clk 0:03:00.1]} 5. O-O {[%clk 0:03:02.9]}
5... d6 {[%clk 0:03:01.1]} 6. d3 {[%clk 0:03:00.3]} 6... a6 {[%clk 0:03:01.4]}
7. a4 {[%clk 0:02:59.8]} 7... Nf6 {[%clk 0:03:01.5]} 8. Nbd2 {[%clk 0:02:51.5]}
8... h6 {[%clk 0:02:56.8]} 9. Re1 {[%clk 0:02:50.8]} 9... O-O {[%clk 0:02:50.7]}
10. h3 {[%clk 0:02:49.9]} 10... Ba7 {[%clk 0:02:48.6]} 11. Nf1 {[%clk
0:02:49.7]} 11... Be6 {[%clk 0:02:49.5]} 12. Bxe6 {[%clk 0:02:44]} 12... fxe6
{[%clk 0:02:51.4]} 13. Be3 {[%clk 0:02:41.3]} 13... Bxe3 {[%clk 0:02:49.9]} 14.
Nxe3 {[%clk 0:02:41.7]} 14... Nh5 {[%clk 0:02:43.6]} 15. g3 {[%clk 0:02:06.1]}
15... Rf7 {[%clk 0:02:39.6]} 16. Nh2 {[%clk 0:02:02.7]} 16... Nf6 {[%clk
0:02:26.1]} 17. Neg4 {[%clk 0:01:54.6]} 17... Raf8 {[%clk 0:02:25.8]} 18. Rf1
{[%clk 0:01:52.4]} 18... d5 {[%clk 0:02:23.2]} 19. Nxf6+ {[%clk 0:01:49.2]}
19... Rxf6 {[%clk 0:02:21.1]} 20. Qe2 {[%clk 0:01:49.4]} 20... Qc5 {[%clk
0:02:18.2]} 21. Ng4 {[%clk 0:01:36.3]} 21... R6f7 {[%clk 0:02:17.9]} 22. Rad1
{[%clk 0:01:21]} 22... d4 {[%clk 0:02:12.5]} 23. c4 {[%clk 0:01:20.4]} 23... Qb4
{[%clk 0:02:06]} 24. Qc2 {[%clk 0:01:17.2]} 24... h5 {[%clk 0:01:50.2]} 25. Nh2
{[%clk 0:01:16.2]} 25... g6 {[%clk 0:01:51.5]} 26. Rde1 {[%clk 0:00:49]} 26...
Na5 {[%clk 0:01:44.7]} 27. Kh1 {[%clk 0:00:26.4]} 27... Nb3 {[%clk 0:01:45]} 28.
f3 {[%clk 0:00:26.1]} 28... Nc5 {[%clk 0:01:41.2]} 29. g4 {[%clk 0:00:26.4]}
29... Qb3 {[%clk 0:01:20.1]} 30. Qg2 {[%clk 0:00:24.6]} 30... Nxd3 {[%clk
0:01:13.9]} 31. gxh5 {[%clk 0:00:24.7]} 31... Nxe1 {[%clk 0:01:01.7]} 32. Qxg6+
{[%clk 0:00:25]} 32... Rg7 {[%clk 0:01:02.4]} 33. Qxe6+ {[%clk 0:00:25]} 33...
Kh7 {[%clk 0:00:54.5]} 34. h6 {[%clk 0:00:09.9]} 34... Rgf7 {[%clk 0:00:19.8]}
35. Rxe1 {[%clk 0:00:10.4]} 35... Qb6 {[%clk 0:00:16.2]} 36. Qg4 {[%clk
0:00:08.1]} 36... Qxh6 {[%clk 0:00:15.1]} 37. Rg1 {[%clk 0:00:08.3]} 37... Rg7
{[%clk 0:00:15.7]} 0-1

[Event "*** Titled Tuesday Blitz AM"]
[Site "Chess.com"]
[Date "2020.01.07"]
[Round "6"]
[White "GMKrikor"]
[Black "Arystanner"]
[Result "0-1"]
[WhiteElo "2863"]
[BlackElo "2741"]
[TimeControl "180+2"]
[EndTime "10:19:19 PST"]
[Termination "Arystanner won by resignation"]

1. e4 {[%clk 0:03:01.9]} 1... e5 {[%clk 0:03:00.6]} 2. Bc4 {[%clk 0:03:02.5]}
2... Nf6 {[%clk 0:02:57.4]} 3. d3 {[%clk 0:03:04]} 3... Nc6 {[%clk 0:02:58]} 4.
Nc3 {[%clk 0:03:04.9]} 4... Bc5 {[%clk 0:02:58]} 5. f4 {[%clk 0:03:05.1]} 5...
d6 {[%clk 0:02:57.6]} 6. Nf3 {[%clk 0:03:06.6]} 6... Be6 {[%clk 0:02:55.9]} 7.
Bxe6 {[%clk 0:02:56.8]} 7... fxe6 {[%clk 0:02:57.8]} 8. Na4 {[%clk 0:02:57.7]}
8... Bb4+ {[%clk 0:02:41]} 9. c3 {[%clk 0:02:56.5]} 9... Ba5 {[%clk 0:02:42.4]}
10. b4 {[%clk 0:02:56.8]} 10... Bb6 {[%clk 0:02:43.9]} 11. Nxb6 {[%clk
0:02:58.3]} 11... axb6 {[%clk 0:02:45.8]} 12. b5 {[%clk 0:02:49.2]} 12... Ne7
{[%clk 0:02:39.2]} 13. fxe5 {[%clk 0:02:48.1]} 13... dxe5 {[%clk 0:02:40.5]} 14.
Nxe5 {[%clk 0:02:43.3]} 14... O-O {[%clk 0:02:41.6]} 15. O-O {[%clk 0:02:37.1]}
15... Qd6 {[%clk 0:02:42.5]} 16. Nc4 {[%clk 0:01:13.2]} 16... Qc5+ {[%clk
0:02:43]} 17. Be3 {[%clk 0:01:13.3]} 17... Qxb5 {[%clk 0:02:44.4]} 18. Qb3
{[%clk 0:01:09.6]} 18... Qh5 {[%clk 0:02:38.3]} 19. h3 {[%clk 0:00:57.4]} 19...
Kh8 {[%clk 0:02:28.2]} 20. Bd4 {[%clk 0:00:51]} 20... b5 {[%clk 0:02:17]} 21.
Ne5 {[%clk 0:00:45.2]} 21... c6 {[%clk 0:01:48.9]} 22. Qxe6 {[%clk 0:00:42.7]}
22... Rae8 {[%clk 0:01:46.2]} 23. Nd7 {[%clk 0:00:29.3]} 23... Ned5 {[%clk
0:01:13.4]} 24. Nxf6 {[%clk 0:00:19.7]} 24... Nxf6 {[%clk 0:01:02.7]} 25. Qf5
{[%clk 0:00:10.2]} 25... Qxf5 {[%clk 0:01:03.7]} 26. Rxf5 {[%clk 0:00:11.1]}
26... Nd7 {[%clk 0:01:05]} 27. Rxf8+ {[%clk 0:00:09.1]} 27... Nxf8 {[%clk
0:01:06.7]} 28. Rf1 {[%clk 0:00:09.6]} 28... Ne6 {[%clk 0:01:08.2]} 29. Be5
{[%clk 0:00:08.9]} 29... Kg8 {[%clk 0:01:07.9]} 30. d4 {[%clk 0:00:09.9]} 30...
Nc5 {[%clk 0:01:04.2]} 31. Rf4 {[%clk 0:00:05.2]} 31... Nd3 {[%clk 0:01:00.4]}
32. Rf5 {[%clk 0:00:06.4]} 32... g6 {[%clk 0:01:00.3]} 33. Rg5 {[%clk
0:00:07.7]} 33... Nxe5 {[%clk 0:00:52.7]} 34. dxe5 {[%clk 0:00:04.9]} 34... Kf7
{[%clk 0:00:53.6]} 35. h4 {[%clk 0:00:06.1]} 35... h6 {[%clk 0:00:54.8]} 36. Rg4
{[%clk 0:00:06.3]} 36... Rxe5 {[%clk 0:00:56.1]} 37. Kf2 {[%clk 0:00:08]} 37...
Rc5 {[%clk 0:00:53.7]} 38. Rg3 {[%clk 0:00:08.5]} 38... Rc4 {[%clk 0:00:55]} 39.
Re3 {[%clk 0:00:09.4]} 39... Ke6 {[%clk 0:00:52.7]} 40. Kf3 {[%clk 0:00:09.1]}
40... Ra4 {[%clk 0:00:54]} 41. Re2 {[%clk 0:00:07.9]} 41... Ra3 {[%clk
0:00:55.4]} 42. Rc2 {[%clk 0:00:09.2]} 42... b4 {[%clk 0:00:56.8]} 43. Ke3
{[%clk 0:00:10.8]} 43... Rxc3+ {[%clk 0:00:57.7]} 44. Rxc3 {[%clk 0:00:11.8]}
44... bxc3 {[%clk 0:00:59.4]} 45. Kd3 {[%clk 0:00:09.2]} 45... Ke5 {[%clk
0:01:00.7]} 46. a4 {[%clk 0:00:09.8]} 46... b6 {[%clk 0:01:00.8]} 0-1

[Event "*** Titled Tuesday Blitz AM"]
[Site "Chess.com"]
[Date "2020.01.07"]
[Round "6"]
[White "Kirill_Kopenkin"]
[Black "angryhorse9"]
[Result "1-0"]
[WhiteElo "2465"]
[BlackElo "2252"]
[TimeControl "180+2"]
[EndTime "10:19:28 PST"]
[Termination "Kirill_Kopenkin won on time"]

1. e4 {[%clk 0:02:51.4]} 1... c5 {[%clk 0:02:49.4]} 2. Nf3 {[%clk 0:02:52.5]}
2... d6 {[%clk 0:02:41.3]} 3. d4 {[%clk 0:02:53.8]} 3... cxd4 {[%clk 0:02:41.5]}
4. Nxd4 {[%clk 0:02:55.7]} 4... Nf6 {[%clk 0:02:41.4]} 5. Nc3 {[%clk 0:02:57.1]}
5... Nc6 {[%clk 0:02:38.8]} 6. f3 {[%clk 0:02:58]} 6... e5 {[%clk 0:02:34.8]} 7.
Nb3 {[%clk 0:02:57.9]} 7... Be7 {[%clk 0:02:34.7]} 8. Be3 {[%clk 0:02:57.7]}
8... O-O {[%clk 0:02:32.3]} 9. Qd2 {[%clk 0:02:58.5]} 9... a5 {[%clk 0:02:33.2]}
10. Bb5 {[%clk 0:02:56.2]} 10... Be6 {[%clk 0:02:31.3]} 11. Rd1 {[%clk
0:02:53.2]} 11... Qc7 {[%clk 0:02:10.1]} 12. O-O {[%clk 0:02:41.9]} 12... Rfc8
{[%clk 0:02:02.5]} 13. Na4 {[%clk 0:02:36.3]} 13... Nd7 {[%clk 0:01:56.9]} 14.
Qf2 {[%clk 0:02:33.7]} 14... Bd8 {[%clk 0:01:42.9]} 15. c3 {[%clk 0:02:31.8]}
15... h6 {[%clk 0:01:26.1]} 16. Rd2 {[%clk 0:02:27.6]} 16... Bg5 {[%clk
0:01:25.8]} 17. Rfd1 {[%clk 0:02:27.9]} 17... Be7 {[%clk 0:01:24]} 18. Bb6
{[%clk 0:02:08.8]} 18... Qb8 {[%clk 0:01:22.5]} 19. g3 {[%clk 0:02:06.1]} 19...
Na7 {[%clk 0:01:15.8]} 20. Bf1 {[%clk 0:01:36.7]} 20... Nc6 {[%clk 0:01:00.6]}
21. f4 {[%clk 0:01:35.2]} 21... f6 {[%clk 0:00:57]} 22. f5 {[%clk 0:01:33.6]}
22... Bf7 {[%clk 0:00:57.8]} 23. g4 {[%clk 0:01:35.1]} 23... Re8 {[%clk
0:00:50.3]} 24. Bb5 {[%clk 0:01:30.6]} 24... Nxb6 {[%clk 0:00:50.6]} 25. Nxb6
{[%clk 0:01:29.7]} 25... Ra7 {[%clk 0:00:51.9]} 26. Bc4 {[%clk 0:01:16.2]} 26...
a4 {[%clk 0:00:50.1]} 27. Bxf7+ {[%clk 0:01:14]} 27... Kxf7 {[%clk 0:00:50.8]}
28. Na1 {[%clk 0:01:15.9]} 28... a3 {[%clk 0:00:41.6]} 29. b3 {[%clk 0:01:16.2]}
29... Ra6 {[%clk 0:00:35.7]} 30. Nc2 {[%clk 0:01:16.5]} 30... Rc8 {[%clk
0:00:20.7]} 31. Nxc8 {[%clk 0:01:16.7]} 31... Qxc8 {[%clk 0:00:20.8]} 32. Ne3
{[%clk 0:01:18.6]} 32... Na5 {[%clk 0:00:20.9]} 33. Nd5 {[%clk 0:01:19.6]} 33...
Bf8 {[%clk 0:00:22.8]} 34. c4 {[%clk 0:01:20]} 34... Rc6 {[%clk 0:00:23.5]} 35.
h4 {[%clk 0:01:20.6]} 35... b5 {[%clk 0:00:24.4]} 36. cxb5 {[%clk 0:01:19.5]}
36... Rc1 {[%clk 0:00:23.1]} 37. Qa7+ {[%clk 0:01:19.7]} 37... Kg8 {[%clk
0:00:21.8]} 38. Qxa5 {[%clk 0:01:15.7]} 38... Qc5+ {[%clk 0:00:22.1]} 39. Kg2
{[%clk 0:01:17]} 39... Rxd1 {[%clk 0:00:17.5]} 40. Rxd1 {[%clk 0:01:18.9]} 40...
Qc2+ {[%clk 0:00:16.5]} 41. Qd2 {[%clk 0:01:20.4]} 41... Qxe4+ {[%clk
0:00:17.2]} 42. Kg3 {[%clk 0:01:21.7]} 42... h5 {[%clk 0:00:18.9]} 43. Nxf6+
{[%clk 0:01:19.6]} 43... gxf6 {[%clk 0:00:18.2]} 44. Qd5+ {[%clk 0:01:21.2]}
44... Qxd5 {[%clk 0:00:18.6]} 45. Rxd5 {[%clk 0:01:23.1]} 45... Be7 {[%clk
0:00:10.4]} 46. b6 {[%clk 0:01:25]} 46... Bd8 {[%clk 0:00:03.2]} 47. Rxd6 {[%clk
0:01:15.6]} 1-0

[Event "*** Titled Tuesday Blitz AM"]
[Site "Chess.com"]
[Date "2020.01.07"]
[Round "6"]
[White "ural58"]
[Black "enriquetejedor"]
[Result "1-0"]
[WhiteElo "2351"]
[BlackElo "2458"]
[TimeControl "180+2"]
[EndTime "10:19:35 PST"]
[Termination "ural58 won by resignation"]

1. e4 {[%clk 0:03:01.9]} 1... c5 {[%clk 0:02:51.6]} 2. b3 {[%clk 0:00:36.3]}
2... Nf6 {[%clk 0:02:43.1]} 3. e5 {[%clk 0:00:36.4]} 3... Nd5 {[%clk 0:02:42.8]}
4. Nc3 {[%clk 0:00:38.3]} 4... Nxc3 {[%clk 0:02:32.9]} 5. dxc3 {[%clk
0:00:40.2]} 5... Nc6 {[%clk 0:02:34.6]} 6. Nf3 {[%clk 0:00:41.1]} 6... g6 {[%clk
0:02:27.1]} 7. Bc4 {[%clk 0:00:41.9]} 7... Bg7 {[%clk 0:02:21.9]} 8. O-O {[%clk
0:00:43.1]} 8... O-O {[%clk 0:02:16]} 9. Bf4 {[%clk 0:00:43.7]} 9... a6 {[%clk
0:02:04.8]} 10. a4 {[%clk 0:00:43.5]} 10... b6 {[%clk 0:02:02.5]} 11. Qd2 {[%clk
0:00:43.9]} 11... Bb7 {[%clk 0:02:02.3]} 12. Rad1 {[%clk 0:00:44.9]} 12... Na5
{[%clk 0:01:53.2]} 13. Qxd7 {[%clk 0:00:38.8]} 13... Qxd7 {[%clk 0:01:14.8]} 14.
Rxd7 {[%clk 0:00:40.7]} 14... Bxf3 {[%clk 0:01:15.2]} 15. gxf3 {[%clk
0:00:41.6]} 15... Nxc4 {[%clk 0:01:16.5]} 16. bxc4 {[%clk 0:00:42.6]} 16... e6
{[%clk 0:01:07.3]} 17. Rb1 {[%clk 0:00:41.9]} 17... Rfb8 {[%clk 0:00:36.5]} 18.
Rd6 {[%clk 0:00:42]} 18... Bf8 {[%clk 0:00:36]} 19. Rdxb6 {[%clk 0:00:42.3]}
19... Rd8 {[%clk 0:00:34.3]} 20. Kf1 {[%clk 0:00:39.6]} 20... a5 {[%clk
0:00:33.4]} 21. Ke2 {[%clk 0:00:40.3]} 21... h6 {[%clk 0:00:31.6]} 22. Be3
{[%clk 0:00:41.1]} 22... Kg7 {[%clk 0:00:29.2]} 23. f4 {[%clk 0:00:42.2]} 23...
h5 {[%clk 0:00:26.4]} 24. R1b5 {[%clk 0:00:39.4]} 24... Rdc8 {[%clk 0:00:25.1]}
25. Rb7 {[%clk 0:00:27.8]} 25... Kg8 {[%clk 0:00:12.7]} 26. Rd7 {[%clk
0:00:28.6]} 26... Rcb8 {[%clk 0:00:11.2]} 27. Kd3 {[%clk 0:00:26.8]} 27... Kg7
{[%clk 0:00:10.6]} 28. Ke4 {[%clk 0:00:27]} 28... Kg8 {[%clk 0:00:11.8]} 29.
Rbb7 {[%clk 0:00:23.4]} 29... Rxb7 {[%clk 0:00:12.6]} 30. Rxb7 {[%clk 0:00:25]}
30... Rd8 {[%clk 0:00:11]} 31. Rb5 {[%clk 0:00:25.8]} 31... Rd1 {[%clk
0:00:11.6]} 32. Bxc5 {[%clk 0:00:26.6]} 32... Bxc5 {[%clk 0:00:08.3]} 33. Rxc5
{[%clk 0:00:28.5]} 33... Rh1 {[%clk 0:00:05.8]} 34. Rxa5 {[%clk 0:00:28.8]}
34... Rxh2 {[%clk 0:00:07.1]} 35. c5 {[%clk 0:00:30.4]} 35... Rh3 {[%clk
0:00:06.8]} 36. Kd4 {[%clk 0:00:30.5]} 36... Rf3 {[%clk 0:00:05.2]} 37. c6
{[%clk 0:00:30.2]} 37... Rxf4+ {[%clk 0:00:06.3]} 38. Kc5 {[%clk 0:00:30.8]}
38... Rf3 {[%clk 0:00:04.9]} 39. Kb4 {[%clk 0:00:30.9]} 39... h4 {[%clk
0:00:03.9]} 40. c7 {[%clk 0:00:31.4]} 40... h3 {[%clk 0:00:05.3]} 41. c8=Q+
{[%clk 0:00:32.4]} 41... Kg7 {[%clk 0:00:07.2]} 42. Ra8 {[%clk 0:00:31.7]} 42...
Kh6 {[%clk 0:00:05.9]} 43. Qh8+ {[%clk 0:00:29.5]} 43... Kg5 {[%clk 0:00:07.3]}
44. a5 {[%clk 0:00:27]} 44... Rf4+ {[%clk 0:00:05.9]} 45. c4 {[%clk 0:00:27]}
45... Rh4 {[%clk 0:00:06.9]} 46. Qxh4+ {[%clk 0:00:28.3]} 46... Kxh4 {[%clk
0:00:08.8]} 47. Rh8+ {[%clk 0:00:29.5]} 1-0

[Event "*** Titled Tuesday Blitz AM"]
[Site "Chess.com"]
[Date "2020.01.07"]
[Round "6"]
[White "bhavesh1810"]
[Black "Andrii_Prydun"]
[Result "1-0"]
[WhiteElo "2035"]
[BlackElo "2348"]
[TimeControl "180+2"]
[EndTime "10:19:36 PST"]
[Termination "bhavesh1810 won on time"]

1. e4 {[%clk 0:03:01.9]} 1... c5 {[%clk 0:02:58.9]} 2. Nf3 {[%clk 0:03:02]} 2...
Nc6 {[%clk 0:03:00.2]} 3. d4 {[%clk 0:03:03.6]} 3... cxd4 {[%clk 0:03:01.4]} 4.
Nxd4 {[%clk 0:03:05.5]} 4... Qb6 {[%clk 0:02:59.6]} 5. Nb3 {[%clk 0:03:05.5]}
5... g6 {[%clk 0:02:58.8]} 6. Be3 {[%clk 0:03:06.6]} 6... Qc7 {[%clk 0:02:59.6]}
7. c3 {[%clk 0:03:04.7]} 7... Bg7 {[%clk 0:03:00]} 8. N1d2 {[%clk 0:03:06.2]}
8... Nf6 {[%clk 0:03:00.3]} 9. Be2 {[%clk 0:03:07.8]} 9... O-O {[%clk
0:03:00.1]} 10. O-O {[%clk 0:03:09]} 10... a6 {[%clk 0:02:59.9]} 11. Bf3 {[%clk
0:03:03.8]} 11... d6 {[%clk 0:02:55.3]} 12. a4 {[%clk 0:03:04.6]} 12... Ne5
{[%clk 0:02:52]} 13. Be2 {[%clk 0:03:04.7]} 13... Neg4 {[%clk 0:02:52.1]} 14.
Bf4 {[%clk 0:02:58.9]} 14... Nh5 {[%clk 0:02:45.4]} 15. Bxd6 {[%clk 0:02:47.9]}
15... Qxd6 {[%clk 0:02:45.5]} 16. Bxg4 {[%clk 0:02:49.5]} 16... Bxg4 {[%clk
0:02:46.4]} 17. Qxg4 {[%clk 0:02:51.4]} 17... Rfd8 {[%clk 0:02:45.3]} 18. a5
{[%clk 0:02:47.1]} 18... Be5 {[%clk 0:02:45.6]} 19. g3 {[%clk 0:02:46.1]} 19...
Bg7 {[%clk 0:02:46.6]} 20. Qe2 {[%clk 0:02:47.1]} 20... e5 {[%clk 0:02:45.4]}
21. Nc4 {[%clk 0:02:41.7]} 21... Qe6 {[%clk 0:02:46]} 22. Nc5 {[%clk 0:02:40.2]}
22... Qh3 {[%clk 0:02:45.3]} 23. Nb6 {[%clk 0:02:38.1]} 23... Rab8 {[%clk
0:02:45.3]} 24. Rad1 {[%clk 0:02:37.2]} 24... Bf8 {[%clk 0:02:43.1]} 25. Ncd7
{[%clk 0:02:34.8]} 25... Rbc8 {[%clk 0:02:27.5]} 26. Nxc8 {[%clk 0:02:29.3]}
26... Rxc8 {[%clk 0:02:29.4]} 27. Nxf8 {[%clk 0:02:29.8]} 27... Rxf8 {[%clk
0:02:27.4]} 28. Rd5 {[%clk 0:02:29.1]} 28... f5 {[%clk 0:02:25.5]} 29. Rxe5
{[%clk 0:02:27.9]} 29... f4 {[%clk 0:02:25.7]} 30. Qc4+ {[%clk 0:02:05.8]} 30...
Kg7 {[%clk 0:02:27]} 31. Qd4 {[%clk 0:02:03.3]} 31... Kh6 {[%clk 0:02:28.3]} 32.
Qd6 {[%clk 0:01:43.7]} 32... Rf7 {[%clk 0:02:01.8]} 33. f3 {[%clk 0:01:05]}
33... fxg3 {[%clk 0:01:40.1]} 34. Qd2+ {[%clk 0:01:04.9]} 34... Kg7 {[%clk
0:01:38.7]} 35. Rg5 {[%clk 0:00:57.1]} 35... Rxf3 {[%clk 0:00:42.4]} 36. Rxf3
{[%clk 0:00:36.4]} 36... gxh2+ {[%clk 0:00:43.4]} 37. Qxh2 {[%clk 0:00:38.2]}
37... Qxf3 {[%clk 0:00:44.9]} 38. Qe5+ {[%clk 0:00:36.5]} 38... Kh6 {[%clk
0:00:45.7]} 39. Rg2 {[%clk 0:00:35.3]} 39... Qe3+ {[%clk 0:00:37]} 40. Kh2
{[%clk 0:00:35.4]} 40... Qc1 {[%clk 0:00:23.4]} 41. Qd6 {[%clk 0:00:23.5]} 41...
Qe3 {[%clk 0:00:20.5]} 42. Qf8+ {[%clk 0:00:23.2]} 42... Ng7 {[%clk 0:00:21.4]}
43. Qf2 {[%clk 0:00:18]} 43... Qf3 {[%clk 0:00:04.4]} 44. Qxf3 {[%clk 0:00:19]}
1-0

[Event "*** Titled Tuesday Blitz AM"]
[Site "Chess.com"]
[Date "2020.01.07"]
[Round "6"]
[White "Ariadna_Atreides"]
[Black "csati17"]
[Result "0-1"]
[WhiteElo "2061"]
[BlackElo "2550"]
[TimeControl "180+2"]
[EndTime "10:19:37 PST"]
[Termination "csati17 won on time"]

1. d4 {[%clk 0:02:59.1]} 1... Nf6 {[%clk 0:03:00.7]} 2. Nf3 {[%clk 0:03:00.6]}
2... e6 {[%clk 0:03:01.4]} 3. e3 {[%clk 0:03:01.3]} 3... c5 {[%clk 0:03:01.6]}
4. Bd3 {[%clk 0:02:58.8]} 4... Nc6 {[%clk 0:03:02.4]} 5. O-O {[%clk 0:02:58.8]}
5... cxd4 {[%clk 0:02:58.4]} 6. exd4 {[%clk 0:02:58.6]} 6... d5 {[%clk
0:03:00.3]} 7. c3 {[%clk 0:02:57.8]} 7... Bd6 {[%clk 0:03:00.7]} 8. Bg5 {[%clk
0:02:57.4]} 8... h6 {[%clk 0:03:00.6]} 9. Bh4 {[%clk 0:02:57.7]} 9... Bd7 {[%clk
0:03:00.3]} 10. Nbd2 {[%clk 0:02:57.4]} 10... Rb8 {[%clk 0:03:00.4]} 11. a4
{[%clk 0:02:53.9]} 11... a6 {[%clk 0:02:59.4]} 12. Re1 {[%clk 0:02:43.4]} 12...
b5 {[%clk 0:02:56.8]} 13. axb5 {[%clk 0:02:43]} 13... axb5 {[%clk 0:02:58.7]}
14. Ne5 {[%clk 0:02:37.6]} 14... Qc7 {[%clk 0:02:55.9]} 15. Bg3 {[%clk 0:02:21]}
15... b4 {[%clk 0:02:49.8]} 16. Ndf3 {[%clk 0:01:54.7]} 16... Ne7 {[%clk
0:02:30.4]} 17. Nxd7 {[%clk 0:01:34.6]} 17... Nxd7 {[%clk 0:02:29.8]} 18. Ne5
{[%clk 0:01:36.1]} 18... Nxe5 {[%clk 0:02:27.6]} 19. dxe5 {[%clk 0:01:23.2]}
19... Bc5 {[%clk 0:02:27.9]} 20. Qa4+ {[%clk 0:01:20.2]} 20... Qd7 {[%clk
0:02:15.3]} 21. cxb4 {[%clk 0:01:06.8]} 21... Qxa4 {[%clk 0:02:03.2]} 22. Rxa4
{[%clk 0:01:06]} 22... Bxb4 {[%clk 0:02:05.1]} 23. Rc1 {[%clk 0:01:03.8]} 23...
O-O {[%clk 0:02:05.1]} 24. f4 {[%clk 0:00:58.1]} 24... Bd2 {[%clk 0:01:59]} 25.
Rc2 {[%clk 0:00:56.4]} 25... Rb4 {[%clk 0:01:47.7]} 26. Rxb4 {[%clk 0:00:34.3]}
26... Bxb4 {[%clk 0:01:49.6]} 27. Rc7 {[%clk 0:00:31.2]} 27... Ra8 {[%clk
0:01:43]} 28. Rb7 {[%clk 0:00:28.8]} 28... Bc5+ {[%clk 0:01:42.9]} 29. Kf1
{[%clk 0:00:25.3]} 29... Ra1+ {[%clk 0:01:41.8]} 30. Ke2 {[%clk 0:00:25.5]}
30... Nc6 {[%clk 0:01:41.6]} 31. Bf2 {[%clk 0:00:15.4]} 31... Bxf2 {[%clk
0:01:35.1]} 32. Kxf2 {[%clk 0:00:15.8]} 32... g5 {[%clk 0:01:37]} 33. g3 {[%clk
0:00:12.8]} 33... Rh1 {[%clk 0:01:07.8]} 34. Kg2 {[%clk 0:00:11.8]} 34... Rd1
{[%clk 0:01:08.4]} 35. Ba6 {[%clk 0:00:07]} 35... Rd2+ {[%clk 0:01:05.9]} 36.
Kh3 {[%clk 0:00:05.8]} 36... Nd4 {[%clk 0:01:01.5]} 37. Rb8+ {[%clk 0:00:04.2]}
37... Kg7 {[%clk 0:01:02.5]} 38. fxg5 {[%clk 0:00:03.4]} 38... hxg5 {[%clk
0:01:02.7]} 39. Kg4 {[%clk 0:00:04]} 39... Rxh2 {[%clk 0:00:45]} 40. Kxg5 {[%clk
0:00:04.4]} 40... Rg2 {[%clk 0:00:46]} 41. Kf4 {[%clk 0:00:04.5]} 41... Nf5
{[%clk 0:00:41.5]} 42. Rb3 {[%clk 0:00:02.5]} 42... d4 {[%clk 0:00:36.9]} 43. g4
{[%clk 0:00:02.8]} 43... Ne3 {[%clk 0:00:37.2]} 44. Rd3 {[%clk 0:00:02.5]} 44...
Rxg4+ {[%clk 0:00:38]} 45. Kf3 {[%clk 0:00:02.9]} 45... Rh4 {[%clk 0:00:35.2]}
46. b4 {[%clk 0:00:02.7]} 46... Nd5 {[%clk 0:00:34.3]} 47. b5 {[%clk 0:00:02.9]}
47... f6 {[%clk 0:00:34]} 48. exf6+ {[%clk 0:00:03]} 48... Kxf6 {[%clk
0:00:35.9]} 0-1